{"text_format":"1","workbook":"xlsx","n_sheets":12,"sheets":["Esaslar","Başvuru Formu","TMM","VTM","BTF","KTP","PR","PT","ATF","EGF","IGRV","Ayarlar"],"not_rendered":{"charts":0,"images":0,"macros":1,"external_links":0,"defined_names":9,"comments":1,"pivot_tables":0},"unopened":[],"bounds":{"document_bytes":16777216,"sheet_cells":100000,"rows_first":2000,"rows_last":500,"rows_between":2000,"halvings":0,"cell_chars":16384,"cell_head_chars":4096},"cells_cut":0,"cells_raw":0,"read":"whole","date_system":"1900"}

{"sheet":"Esaslar","index":0,"n_rows":20,"n_cols":28,"rows_kept":20,"cut":false,"hidden":false,"merged":[[18,0,18,3],[19,1,19,3],[0,0,0,3],[13,1,13,3],[15,1,15,3],[16,1,16,3],[17,1,17,3],[9,1,9,3],[10,1,10,3],[8,0,8,3],[5,0,5,1],[11,1,11,3],[7,0,7,3],[1,0,1,1],[2,0,2,1],[3,0,3,1],[4,0,4,1],[12,0,12,3],[14,0,14,3]]}
["Performans Değerlendirmede Uyulacak Esaslar"]
["Adı"]
["Soyadı"]
["Ünvanı",null,"Öğrt. Gör.",null,null,null,null,null,null,null,null,null,null,null,null,null,null,null,null,null,null,null,null,null,null,null,4,2]
["Sözleşme başlangıç tarihi",null,"2021-07-30"]
["Sözleşme bitiş tarihi",null,"2022-07-30"]
[]
["Bu formun doldurulmasında takip edilecek esaslar"]
["Genel ilkeler"]
[1,"Bu formun doldurulmasındaki sorumluluk adaya aittir. Girilen herbir aktivite kanıtlanabilir olmalıdır. Eksik veya yanlış girilen aktiviteye karşılık gelen puan değerlendirmeye alınmaz."]
[null,"Öğretim elamanı görevi esnasında yanlış bilgilendirme yapıldığının tespiti durumunda üniversite iş akdini tek taraflı sonlandırır.."]
[2,"Bu formun herbir sayfası imzalanmalıdır"]
["Yayınlar"]
[2,"Yayınlar adayın alanlı ile ilgili olmalıdır."]
["Atıflar"]
[3,"Sadece kendisinin yazarı olmadığı makaleler tarafından yapılan alıntı."]
[4,"Aynı makalede birden fazla alıntı tek atıf puanı"]
[5,"Yıl bazında maksimum alınabilecek puan 60."]
["Proje"]
[6,"Sadece bilimsel araştırma projeleri değerlendirmeye dahil edilir."]

{"sheet":"Başvuru Formu","index":1,"n_rows":59,"n_cols":5,"rows_kept":59,"cut":false,"hidden":false,"merged":[[0,0,0,4],[34,1,34,3],[35,1,35,3],[51,1,51,3],[52,1,52,3],[45,1,45,3],[47,1,47,3],[48,1,48,3],[49,1,49,3],[44,1,44,3],[46,1,46,3],[11,1,11,3],[12,1,12,3],[25,1,25,3],[26,1,26,3],[27,1,27,3],[33,1,33,3],[39,1,39,3],[40,1,40,3],[41,1,41,3],[53,1,53,3],[42,1,42,3],[1,1,1,3],[2,1,2,3],[3,1,3,3],[4,1,4,3],[5,1,5,3],[6,1,6,3],[7,1,7,3],[8,1,8,3],[9,1,9,3],[10,1,10,3],[13,1,13,3],[14,1,14,3],[30,1,30,3],[16,1,16,3],[19,1,19,3],[28,1,28,3],[20,1,20,3],[21,1,21,3],[22,1,22,3],[23,1,23,3],[24,1,24,3],[58,0,58,3],[36,1,36,3],[37,1,37,3],[38,1,38,3],[15,1,15,3],[57,0,57,3],[29,1,29,3],[17,1,17,3],[18,1,18,3],[50,1,50,3],[31,1,31,3],[56,1,56,3],[54,1,54,3],[55,1,55,3],[43,1,43,3],[32,1,32,3]]}
["Eğitim-Öğretim Faaliyetleri, Bilimsel Faaliyetler, Üniversiteye Katkı ve İdari Görevlerin  Puanları"]
["Faaliyet Grubu","Faaliyet Türü",null,null,"Puan"]
["A",{"$f":"TMM!B1","v":"Tam metin makale"}]
["A1",{"$f":"TMM!B3","v":"SCI (Science Citation Index), SCI expanded, SSCI (Social Science Citation Index) ve AHCI (Art Humanities Citation Index)"},null,null,{"$f":"TMM!D9","v":160}]
["A2",{"$f":"TMM!B10","v":"E-SCI (Emerging Sources Citation Index)"},null,null,{"$f":"TMM!D16","v":0}]
["A3",{"$f":"TMM!B17","v":"Scopus, EBSCO"},null,null,{"$f":"TMM!D23","v":0}]
["A4",{"$f":"TMM!B24","v":"ULAKBİM, TR Dizin tarafından taranan ulusal hakemli dergiler"},null,null,{"$f":"TMM!D30","v":0}]
["A5",{"$f":"TMM!B31","v":"Üniversitelerin bünyesinde yayınlanan diğer hakemli dergiler"},null,null,{"$f":"TMM!D37","v":0}]
["B","Vaka takdimi, özet, mektup, teknik not vb."]
["B1",{"$f":"VTM!B3","v":"SCI (Science Citation Index), SCI expanded, SSCI (Social Science Citation Index) ve AHCI (Art Humanities Citation Index)"},null,null,{"$f":"VTM!D9","v":0}]
["B2",{"$f":"VTM!B10","v":"E-SCI (Emerging Sources Citation Index)"},null,null,{"$f":"VTM!D16","v":0}]
["B3",{"$f":"VTM!B17","v":"Scopus, EBSCO"},null,null,{"$f":"VTM!D23","v":0}]
["B4",{"$f":"VTM!B24","v":"ULAKBİM tarafından taranan ulusal hakemli dergiler"},null,null,{"$f":"VTM!D30","v":0}]
["B5",{"$f":"VTM!B31","v":"ULAKBİM, TR Dizin tarafından taranan ulusal hakemli dergiler"},null,null,{"$f":"VTM!D37","v":0}]
["C","Bilimsel Toplantı Faaliyeti"]
["C1",{"$f":"BTF!B3","v":"Uluslararası bilimsel toplantılarda sunulan (poster hariç), tam metni veya özeti matbu veya elektronik olarak bildiri kitapçığında yayımlanmış çalışmalar"},null,null,{"$f":"BTF!D9","v":0}]
["C2",{"$f":"BTF!B10","v":"Uluslararası bilimsel toplantılara katılım veya poster sunum"},null,null,{"$f":"BTF!D16","v":0}]
["C3",{"$f":"BTF!B17","v":"Ulusal bilimsel toplantılarda sunulan (poster hariç), tam metni veya özeti matbu veya elektronik olarak bildiri kitapçığında yayımlanmış çalışmalar"},null,null,{"$f":"BTF!D23","v":0}]
["C4",{"$f":"BTF!B24","v":"Ulusal bilimsel toplantılara katılım veya poster sunum"},null,null,{"$f":"BTF!D30","v":0}]
["D","Kitap"]
["D1",{"$f":"KTP!B3","v":"Uluslararası yayınevleri tarafından yayımlanmış kitap"},null,null,{"$f":"KTP!D9","v":0}]
["D2",{"$f":"KTP!B10","v":"Uluslararası yayınevleri tarafından yayımlanmış kitap editörlüğü veya bölüm yazarlığı"},null,null,{"$f":"KTP!D16","v":0}]
["D3",{"$f":"KTP!B17","v":"Ulusal yayınevleri tarafından yayımlanmış kitap"},null,null,{"$f":"KTP!D23","v":0}]
["D4",{"$f":"KTP!B24","v":"Ulusal yayınevleri tarafından yayımlanmış kitap editörlüğü veya bölüm yazarlığı"},null,null,{"$f":"KTP!D30","v":0}]
["E","Bilimsel Araştırma Projesi"]
["E1",{"$f":"PR!B3","v":"Devam eden veya başarı ile tamamlanmış AB Çerçeve programı bilimsel araştırma projesinde koordinatör, yürütücü, baş araştırmacı olmak "},null,null,{"$f":"PR!C7","v":0}]
["E2",{"$f":"PR!B8","v":"Devam eden veya başarı ile tamamlanmış AB Çerçeve programı bilimsel araştırma projesinde ortak araştırmacı olmak"},null,null,{"$f":"PR!C12","v":0}]
["E3",{"$f":"PR!B13","v":"Devam eden veya başarı ile tamamlanmış diğer (E1 ve E2 bentleri) dışındaki uluslararası destekli bilimsel araştırma projelerinde (derleme ve rapor hazırlama çalışmaları hariç) görev almak"},null,null,{"$f":"PR!C17","v":0}]
["E4",{"$f":"PR!B18","v":"Üniversite dışındaki kamu kurumlarıyla yapılan başarıyla tamamlanmış veya devam eden bilimsel araştırma projelerinde koordinatör, yrütücü, baş araştırmacı olmak "},null,null,{"$f":"PR!C22","v":0}]
["E5",{"$f":"PR!B23","v":"Üniversite dışındaki kamu kurumlarıyla yapılan başarıyla tamamlanmış veya devam eden bilimsel araştırma projelerinde araştırmacı, danışman olarak görev almak"},null,null,{"$f":"PR!C27","v":0}]
["E6",{"$f":"PR!B28","v":"Üniversiteiçi kaynaklarla yapılan başarıyla tamamlanmış veya devam eden bilimsel araştırma projelerinde koordinatör, yrütücü, baş araştırmacı, araştırmacı, danışman olarak görev almak"},null,null,{"$f":"PR!C32","v":0}]
["F","Patent"]
["F1",{"$f":"PT!B3","v":"Uluslararası patent alma "},null,null,{"$f":"PT!C7","v":0}]
["F2",{"$f":"PT!B8","v":"Uluslararası patent olumlu rapor"},null,null,{"$f":"PT!C12","v":0}]
["F3",{"$f":"PT!B13","v":"Ulusal patent alma"},null,null,{"$f":"PT!C17","v":0}]
["F4",{"$f":"PT!B18","v":"Ulusal patent olumlu rapor"},null,null,{"$f":"PT!C22","v":0}]
["G","Atıf"]
["G1",{"$f":"ATF!B3","v":"Uluslararası indeksli dergilerde atıf"},null,null,{"$f":"ATF!C14","v":0}]
["G2",{"$f":"ATF!B15","v":"Ulusal indeksli dergilerde ve kitaplarda atıf "},null,null,{"$f":"ATF!C26","v":0}]
["H","Eğitim Faaliyetleri"]
["H1",{"$f":"EGF!B4","v":"Ders yükü (ön lisans, lisans, lisansüstü) "},null,null,{"$f":"EGF!H12","v":0}]
["H2",{"$f":"EGF!B15","v":"Öğrenci memnuniyeti"},null,null,{"$f":"EGF!H15","v":0}]
["H3",{"$f":"EGF!B17","v":"Öğrenci Kurum Dışı Proje Yarışma Danışmanlığı (Her bir proje için)"}]
["H4",{"$f":"EGF!B18","v":"Lisans ve önlisans öğrenci danışmanlığı "},null,null,{"$f":"EGF!H18","v":0}]
["H5",{"$f":"EGF!B19","v":"Yüksek Lisans tez danışmanlığı"},null,null,{"$f":"EGF!H19","v":0}]
["H6",{"$f":"EGF!B20","v":"Yüksek Lisans tez eş danışmanlığı"},null,null,{"$f":"EGF!H20","v":0}]
["H7",{"$f":"EGF!B21","v":"Doktora tez danışmanlığı"},null,null,{"$f":"EGF!H21","v":0}]
["H8",{"$f":"EGF!B22","v":"Doktora tez eş danışmanlığı"},null,null,{"$f":"EGF!H22","v":0}]
["I","Üniversiteye Katkı/İdari görevler"]
["I1",{"$f":"IGRV!B4","v":"Rektör, Rektör Yardımcısı "},null,null,{"$f":"IGRV!F4","v":0}]
["I2",{"$f":"IGRV!B5","v":"Dekan, Akademik Kadroda bulunan Genel Sekreter, Müdür (Enstitü/MYO/BAP) "},null,null,{"$f":"IGRV!F5","v":0}]
["I3",{"$f":"IGRV!B6","v":"Dekan Yardımcısı, Bölüm Başkanı, Merkez Müdürü,  Müdür Yardımcısı(Enstitü/MYO/BAP)"},null,null,{"$f":"IGRV!F6","v":0}]
["I4",{"$f":"IGRV!B7","v":"Bölüm Başkan Yardımcısı, Anabilim Dalı Başkanı, MYO Program Başkanı"},null,null,{"$f":"IGRV!F7","v":0}]
["I5","SHGM Müdür, SHGM Koordinatör",null,null,{"$f":"IGRV!F8","v":0}]
["I6",{"$f":"IGRV!B9","v":"Yabancı Diller Bölümü Koordinatörlük"},null,null,{"$f":"IGRV!F9","v":0}]
["I7",{"$f":"IGRV!B10","v":"Komisyon/kurul görevi (Bologna, Erasmus, Farabi, Mevlana, ADEK, BAP, Yayın, Etik, Engelli, Uluslaraarsı Ofis) "},null,null,{"$f":"IGRV!F10","v":0}]
["I8",{"$f":"IGRV!B11","v":"Öğrenci Kulübü Danışman Öğretim Üyesi "},null,null,{"$f":"IGRV!F11","v":0}]
["Ham puan",null,null,null,{"$f":"SUM(E4:E8,E10:E14,E16:E19,E21:E24,E26:E31,E33:E36,IF(SUM(E38:E39)<=60,E38:E39,60),E41:E48,E50:E57)","v":160}]
["Akademik puan",null,null,null,{"$f":"ROUND(E58/ROUND(_xlfn.DAYS(Esaslar!C6,Esaslar!C5)/30,0)*12,0)*Esaslar!AB4","v":320}]

{"sheet":"TMM","index":2,"n_rows":37,"n_cols":4,"rows_kept":37,"cut":false,"hidden":false,"merged":[[36,0,36,2],[0,1,0,3],[29,0,29,2],[8,0,8,2],[15,0,15,2],[22,0,22,2]]}
[null,"Tam metin makale"]
["Yayın Grubu","Yayın Künyesi","Yayında yer alan Üniversitemizde görevli öğretim elemanı  yazar sayısı","Puan"]
["A1","SCI (Science Citation Index), SCI expanded, SSCI (Social Science Citation Index) ve AHCI (Art Humanities Citation Index)",null,160]
[1,"abc",1,{"$f":"IF(ISBLANK(B4),0,$D$3/C4)","v":160}]
[2,null,1,{"$f":"IF(ISBLANK(B5),0,$D$3/C5)","v":0}]
[3,null,1,0]
[4,null,1,0]
[5,null,null,0]
["Toplam",null,null,{"$f":"SUM(D4:D8)","v":160}]
["A2","E-SCI (Emerging Sources Citation Index)",null,80]
[1,null,null,{"$f":"IF(ISBLANK(B11),0,$D$10/C11)","v":0}]
[2,null,null,{"$f":"IF(ISBLANK(B12),0,$D$10/C12)","v":0}]
[3,null,null,0]
[4,null,null,0]
[5,null,null,0]
["Toplam",null,null,{"$f":"SUM(D11:D15)","v":0}]
["A3","Scopus, EBSCO","Katsayı",40]
[1,null,null,{"$f":"IF(ISBLANK(B18),0,$D$17/C18)","v":0}]
[2,null,null,{"$f":"IF(ISBLANK(B19),0,$D$17/C19)","v":0}]
[3,null,null,0]
[4,null,null,0]
[5,null,null,0]
["Toplam",null,null,{"$f":"SUM(D18:D22)","v":0}]
["A4","ULAKBİM, TR Dizin tarafından taranan ulusal hakemli dergiler",null,40]
[1,null,null,{"$f":"IF(ISBLANK(B25),0,$D$24/C25)","v":0}]
[2,null,null,{"$f":"IF(ISBLANK(B26),0,$D$24/C26)","v":0}]
[3,null,null,0]
[4,null,null,0]
[5,null,null,0]
["Toplam",null,null,{"$f":"SUM(D25:D29)","v":0}]
["A5","Üniversitelerin bünyesinde yayınlanan diğer hakemli dergiler",null,20]
[1,null,null,{"$f":"IF(ISBLANK(B32),0,$D$31/C32)","v":0}]
[2,null,null,{"$f":"IF(ISBLANK(B33),0,$D$31/C33)","v":0}]
[3,null,null,0]
[4,null,null,0]
[5,null,null,0]
["Toplam",null,null,{"$f":"SUM(D32:D36)","v":0}]

{"sheet":"VTM","index":3,"n_rows":37,"n_cols":4,"rows_kept":37,"cut":false,"hidden":false,"merged":[[29,0,29,2],[36,0,36,2],[0,1,0,3],[8,0,8,2],[15,0,15,2],[22,0,22,2]]}
[null,"Vaka takdimi, özet, mektup, teknik not vb."]
["Yayın Grubu","Yayın Künyesi","Yayında yer alan yazar sayısı","Puan"]
["B1","SCI (Science Citation Index), SCI expanded, SSCI (Social Science Citation Index) ve AHCI (Art Humanities Citation Index)",null,80]
[1,null,null,{"$f":"IF(ISBLANK(B4),0,$D$3/C4)","v":0}]
[2,null,null,{"$f":"IF(ISBLANK(B5),0,$D$3/C5)","v":0}]
[3,null,null,0]
[4,null,null,0]
[5,null,null,0]
["Toplam",null,null,{"$f":"SUM(D4:D8)","v":0}]
["B2","E-SCI (Emerging Sources Citation Index)",null,40]
[1,null,null,{"$f":"IF(ISBLANK(B11),0,$D$10/C11)","v":0}]
[2,null,null,{"$f":"IF(ISBLANK(B12),0,$D$10/C12)","v":0}]
[3,null,null,0]
[4,null,null,0]
[5,null,null,0]
["Toplam",null,null,{"$f":"SUM(D11:D15)","v":0}]
["B3","Scopus, EBSCO",null,20]
[1,null,null,{"$f":"IF(ISBLANK(B18),0,$D$17/C18)","v":0}]
[2,null,null,{"$f":"IF(ISBLANK(B19),0,$D$17/C19)","v":0}]
[3,null,null,0]
[4,null,null,0]
[5,null,null,0]
["Toplam",null,null,{"$f":"SUM(D18:D22)","v":0}]
["B4","ULAKBİM tarafından taranan ulusal hakemli dergiler",null,20]
[1,null,null,{"$f":"IF(ISBLANK(B25),0,$D$24/C25)","v":0}]
[2,null,null,{"$f":"IF(ISBLANK(B26),0,$D$24/C26)","v":0}]
[3,null,null,0]
[4,null,null,0]
[5,null,null,0]
["Toplam",null,null,{"$f":"SUM(D25:D29)","v":0}]
["B5","ULAKBİM, TR Dizin tarafından taranan ulusal hakemli dergiler",null,10]
[1,null,null,{"$f":"IF(ISBLANK(B32),0,$D$31/C32)","v":0}]
[2,null,null,{"$f":"IF(ISBLANK(B33),0,$D$31/C33)","v":0}]
[3,null,null,0]
[4,null,null,0]
[5,null,null,{"$f":"IF(ISBLANK(B36),0,$D$31/C36)","v":0}]
["Toplam",null,null,{"$f":"SUM(D32:D36)","v":0}]

{"sheet":"BTF","index":4,"n_rows":30,"n_cols":4,"rows_kept":30,"cut":false,"hidden":false,"merged":[[8,0,8,2],[15,0,15,2],[0,1,0,3],[22,0,22,2],[29,0,29,2]]}
[null,"Bilimsel Toplantı Faaliyeti"]
["Yayın Grubu","Yayın Künyesi","Yayında yer alan yazar sayısı","Puan"]
["C1","Uluslararası bilimsel toplantılarda sunulan (poster hariç), tam metni veya özeti matbu veya elektronik olarak bildiri kitapçığında yayımlanmış çalışmalar",null,20]
[1,null,1,{"$f":"IF(ISBLANK(B4),0,$D$3/C4)","v":0}]
[2,null,null,{"$f":"IF(ISBLANK(B5),0,$D$3/C5)","v":0}]
[3,null,null,0]
[4,null,null,0]
[5,null,null,0]
["Toplam",null,null,{"$f":"SUM(D4:D8)","v":0}]
["C2","Uluslararası bilimsel toplantılara katılım veya poster sunum",null,10]
[1,null,null,{"$f":"IF(ISBLANK(B11),0,$D$10/C11)","v":0}]
[2,null,null,{"$f":"IF(ISBLANK(B12),0,$D$10/C12)","v":0}]
[3,null,null,0]
[4,null,null,0]
[5,null,null,{"$f":"IF(ISBLANK(B15),0,$D$10/C15)","v":0}]
["Toplam",null,null,{"$f":"SUM(D11:D15)","v":0}]
["C3","Ulusal bilimsel toplantılarda sunulan (poster hariç), tam metni veya özeti matbu veya elektronik olarak bildiri kitapçığında yayımlanmış çalışmalar",null,10]
[1,null,null,{"$f":"IF(ISBLANK(B18),0,$D$17/C18)","v":0}]
[2,null,null,{"$f":"IF(ISBLANK(B19),0,$D$17/C19)","v":0}]
[3,null,null,0]
[4,null,null,0]
[5,null,null,0]
["Toplam",null,null,{"$f":"SUM(D18:D22)","v":0}]
["C4","Ulusal bilimsel toplantılara katılım veya poster sunum",null,5]
[1,null,null,{"$f":"IF(ISBLANK(B25),0,$D$24/C25)","v":0}]
[2,null,null,{"$f":"IF(ISBLANK(B26),0,$D$24/C26)","v":0}]
[3,null,null,0]
[4,null,null,0]
[5,null,null,0]
["Toplam",null,null,{"$f":"SUM(D25:D29)","v":0}]

{"sheet":"KTP","index":5,"n_rows":30,"n_cols":4,"rows_kept":30,"cut":false,"hidden":false,"merged":[[22,0,22,2],[29,0,29,2],[0,1,0,3],[8,0,8,2],[15,0,15,2]]}
[null,"Kitap"]
["Yayın Grubu","Yayın Künyesi","Yayında yer alan yazar sayısı","Puan"]
["D1","Uluslararası yayınevleri tarafından yayımlanmış kitap",null,60]
[1,null,null,{"$f":"IF(ISBLANK(B4),0,$D$3/C4)","v":0}]
[2,null,null,{"$f":"IF(ISBLANK(B5),0,$D$3/C5)","v":0}]
[3,null,null,0]
[4,null,null,0]
[5,null,null,0]
["Toplam",null,null,{"$f":"SUM(D4:D8)","v":0}]
["D2","Uluslararası yayınevleri tarafından yayımlanmış kitap editörlüğü veya bölüm yazarlığı",null,30]
[1,null,null,{"$f":"IF(ISBLANK(B11),0,$D$10/C11)","v":0}]
[2,null,null,{"$f":"IF(ISBLANK(B12),0,$D$10/C12)","v":0}]
[3,null,null,0]
[4,null,null,0]
[5,null,null,0]
["Toplam",null,null,{"$f":"SUM(D11:D15)","v":0}]
["D3","Ulusal yayınevleri tarafından yayımlanmış kitap",null,30]
[1,null,null,{"$f":"IF(ISBLANK(B18),0,$D$17/C18)","v":0}]
[2,null,null,{"$f":"IF(ISBLANK(B19),0,$D$17/C19)","v":0}]
[3,null,null,0]
[4,null,null,0]
[5,null,null,0]
["Toplam",null,null,{"$f":"SUM(D18:D22)","v":0}]
["D4","Ulusal yayınevleri tarafından yayımlanmış kitap editörlüğü veya bölüm yazarlığı",null,15]
[1,null,null,{"$f":"IF(ISBLANK(B25),0,$D$24/C25)","v":0}]
[2,null,null,{"$f":"IF(ISBLANK(B26),0,$D$24/C26)","v":0}]
[3,null,null,0]
[4,null,null,0]
[5,null,null,0]
["Toplam",null,null,{"$f":"SUM(D25:D29)","v":0}]

{"sheet":"PR","index":6,"n_rows":32,"n_cols":3,"rows_kept":32,"cut":false,"hidden":false,"merged":[[31,0,31,1],[16,0,16,1],[21,0,21,1],[26,0,26,1],[6,0,6,1],[11,0,11,1]]}
[null,"Bilimsel Araştırma Projesi"]
["Faaliyet Grubu","Faaliyet Künyesi","Puan"]
["E1","Devam eden veya başarı ile tamamlanmış AB Çerçeve programı bilimsel araştırma projesinde koordinatör, yürütücü, baş araştırmacı olmak ",150]
[1,null,{"$f":"IF(ISBLANK(B4),0,$C$3)","v":0}]
[2,null,{"$f":"IF(ISBLANK(B5),0,$C$3)","v":0}]
[3,null,{"$f":"E14","v":0}]
["Toplam",null,{"$f":"SUM(C4:C6)","v":0}]
["E2","Devam eden veya başarı ile tamamlanmış AB Çerçeve programı bilimsel araştırma projesinde ortak araştırmacı olmak",125]
[1,null,{"$f":"IF(ISBLANK(B9),0,$C$8)","v":0}]
[2,null,{"$f":"IF(ISBLANK(B10),0,$C$8)","v":0}]
[3,null,0]
["Toplam",null,{"$f":"SUM(C9:C11)","v":0}]
["E3","Devam eden veya başarı ile tamamlanmış diğer (E1 ve E2 bentleri) dışındaki uluslararası destekli bilimsel araştırma projelerinde (derleme ve rapor hazırlama çalışmaları hariç) görev almak",100]
[1,null,{"$f":"IF(ISBLANK(B14),0,$C$13)","v":0}]
[2,null,{"$f":"IF(ISBLANK(B15),0,$C$13)","v":0}]
[3,null,0]
["Toplam",null,{"$f":"SUM(C14:C16)","v":0}]
["E4","Üniversite dışındaki kamu kurumlarıyla yapılan başarıyla tamamlanmış veya devam eden bilimsel araştırma projelerinde koordinatör, yrütücü, baş araştırmacı olmak ",75]
[1,null,{"$f":"IF(ISBLANK(B19),0,$C$18)","v":0}]
[2,null,{"$f":"IF(ISBLANK(B20),0,$C$18)","v":0}]
[3,null,0]
["Toplam",null,{"$f":"SUM(C19:C21)","v":0}]
["E5","Üniversite dışındaki kamu kurumlarıyla yapılan başarıyla tamamlanmış veya devam eden bilimsel araştırma projelerinde araştırmacı, danışman olarak görev almak",50]
[1,null,{"$f":"IF(ISBLANK(B24),0,$C$23)","v":0}]
[2,null,{"$f":"IF(ISBLANK(B25),0,$C$23)","v":0}]
[3,null,0]
["Toplam",null,{"$f":"SUM(C24:C26)","v":0}]
["E6","Üniversiteiçi kaynaklarla yapılan başarıyla tamamlanmış veya devam eden bilimsel araştırma projelerinde koordinatör, yrütücü, baş araştırmacı, araştırmacı, danışman olarak görev almak",25]
[1,null,{"$f":"IF(ISBLANK(B29),0,$C$28)","v":0}]
[2,null,{"$f":"IF(ISBLANK(B30),0,$C$28)","v":0}]
[3,null,0]
["Toplam",null,{"$f":"SUM(C29:C31)","v":0}]

{"sheet":"PT","index":7,"n_rows":22,"n_cols":3,"rows_kept":22,"cut":false,"hidden":false,"merged":[[6,0,6,1],[16,0,16,1],[11,0,11,1]]}
[null,"Patent"]
["Faaliyet Grubu","Faaliyet Künyesi","Puan"]
["F1","Uluslararası patent alma ",100]
[1,null,{"$f":"IF(ISBLANK(B4),0,$C$3)","v":0}]
[2,null,{"$f":"IF(ISBLANK(B5),0,$C$3)","v":0}]
[3,null,{"$f":"E15","v":0}]
["Toplam",null,{"$f":"SUM(C4:C6)","v":0}]
["F2","Uluslararası patent olumlu rapor",50]
[1,null,{"$f":"IF(ISBLANK(B9),0,$C$8)","v":0}]
[2,null,{"$f":"IF(ISBLANK(B10),0,$C$8)","v":0}]
[3,null,0]
["Toplam",null,{"$f":"SUM(C9:C11)","v":0}]
["F3","Ulusal patent alma",50]
[1,null,{"$f":"IF(ISBLANK(B14),0,$C$13)","v":0}]
[2,null,{"$f":"IF(ISBLANK(B15),0,$C$13)","v":0}]
[3,null,0]
["Toplam",null,{"$f":"SUM(C14:C16)","v":0}]
["F4","Ulusal patent olumlu rapor",25]
[1,null,{"$f":"IF(ISBLANK(B19),0,$C$18)","v":0}]
[2,null,{"$f":"IF(ISBLANK(B20),0,$C$18)","v":0}]
[3,null,0]
["Toplam",null,{"$f":"SUM(C19:C21)","v":0}]

{"sheet":"ATF","index":8,"n_rows":26,"n_cols":3,"rows_kept":26,"cut":false,"hidden":false,"merged":[[13,0,13,1],[25,0,25,1]]}
[null,"Atıf (maksimum 50 puan)"]
["Faaliyet Grubu","Faaliyet Künyesi","Puan"]
["G1","Uluslararası indeksli dergilerde atıf",4]
[1,null,{"$f":"IF(ISBLANK(B4),0,$C$3)","v":0}]
[{"$f":"SUM(A4,1)","v":2},null,{"$f":"IF(ISBLANK(B5),0,$C$3)","v":0}]
[{"$f":"SUM(A5,1)","v":3},null,0]
[4,null,0]
[5,null,0]
[6,null,0]
[7,null,0]
[8,null,0]
[9,null,0]
[10,null,0]
["Toplam",null,{"$f":"SUM(C4:C13)","v":0}]
["G2","Ulusal indeksli dergilerde ve kitaplarda atıf ",2]
[1,null,{"$f":"IF(ISBLANK(B16),0,$C$15)","v":0}]
[{"$f":"SUM(A16,1)","v":2},null,0]
[{"$f":"SUM(A17,1)","v":3},null,0]
[4,null,0]
[5,null,0]
[6,null,0]
[7,null,0]
[8,null,{"$f":"IF(ISBLANK(B23),0,$C$15)","v":0}]
[9,null,{"$f":"IF(ISBLANK(B24),0,$C$15)","v":0}]
[10,null,0]
["Toplam",null,{"$f":"SUM(C16:C25)","v":0}]

{"sheet":"EGF","index":9,"n_rows":23,"n_cols":8,"rows_kept":23,"cut":false,"hidden":false,"merged":[[0,0,0,7],[1,0,1,7],[22,1,22,6],[16,2,16,5],[17,2,17,5],[18,2,18,5],[21,2,21,5],[19,2,19,5],[20,2,20,5],[12,0,12,7],[15,0,15,7],[3,1,10,1],[3,0,10,0],[13,2,13,5],[11,0,11,6],[14,2,14,5]]}
["Eğitim Faaliyetleri"]
["Dersler"]
["Faaliyet Grubu","Faaliyet Türü","Dersin Kodu","Dersin Dönemi","Akademisyenin Dönem Boyunca İşlemiş Olduğu Ders Saati","Öğrenci Sayısı","Katsayı ","Puan"]
["H1","Ders yükü (ön lisans, lisans, lisansüstü) ",null,null,42,20,0.5,{"$f":"IF(ISBLANK(C4),0,10+E4*POWER(F4,3/4)/40*G4)","v":0}]
[null,null,null,null,null,null,0.5,{"$f":"IF(ISBLANK(C5),0,10+E5*POWER(F5,3/4)/40*G5)","v":0}]
[null,null,null,null,null,null,0.5,{"$f":"IF(ISBLANK(C6),0,10+E6*POWER(F6,3/4)/40*G6)","v":0}]
[null,null,null,null,null,null,0.5,0]
[null,null,null,null,null,null,0.5,0]
[null,null,null,null,null,null,0.5,0]
[null,null,null,null,null,null,0.5,0]
[null,null,null,null,null,null,0.5,0]
["Toplam",null,null,null,null,null,null,{"$f":"SUM(H4:H11)","v":0}]
["Öğrenci Memnuniyet"]
[null,null,"Akademisyenin Yukarıda Listelemiş Olduğu Derslerden Ortalama Öğrenci Memnuniyeti Puanı (100 Puan Üzerinden)"]
["H2","Öğrenci memnuniyeti",null,null,null,null,0.2,{"$f":"IF(ISBLANK(C15),0,C15*G15)","v":0}]
["Danışmanlık"]
["H3","Öğrenci Kurum Dışı Proje Yarışma Danışmanlığı (Her bir proje için)",null,null,null,null,15,{"$f":"IF(ISBLANK(C17),0,C17*G17)","v":0}]
["H4","Lisans ve önlisans öğrenci danışmanlığı ",null,null,null,null,0.5,{"$f":"IF(ISBLANK(C18),0,C18*G18)","v":0}]
["H5","Yüksek Lisans tez danışmanlığı",null,null,null,null,4,{"$f":"IF(ISBLANK(C19),0,C19*G19)","v":0}]
["H6","Yüksek Lisans tez eş danışmanlığı",null,null,null,null,2,0]
["H7","Doktora tez danışmanlığı",null,null,null,null,8,0]
["H8","Doktora tez eş danışmanlığı",null,null,null,null,4,0]
[null,"Eğitim Faaliyetleri Toplam puanı",null,null,null,null,null,{"$f":"H12+H15+SUM(H17:H22)","v":0}]

{"sheet":"IGRV","index":10,"n_rows":12,"n_cols":6,"rows_kept":12,"cut":false,"hidden":false,"merged":[[11,0,11,5],[1,2,1,3],[0,0,0,5]]}
["Üniversiteye Katkı/İdari görevler"]
["Faaliyet Grubu","Faaliyet Türü","Faaliyet süresi(ay)",null,"Katsayı","Puan"]
[null,null,"Görev başlangıç tarihi","Görev bitiş tarihi"]
["I1","Rektör, Rektör Yardımcısı ",null,null,100,{"$f":"IF(OR(ISBLANK(C4),ISBLANK(D4)),0,ROUND(ROUND(_xlfn.DAYS(D4,C4)/30,0)*E4/12,0))","v":0}]
["I2","Dekan, Akademik Kadroda bulunan Genel Sekreter, Müdür (Enstitü/MYO/BAP) ",null,null,100,{"$f":"IF(OR(ISBLANK(C5),ISBLANK(D5)),0,ROUND(ROUND(_xlfn.DAYS(D5,C5)/30,0)*E5/12,0))","v":0}]
["I3","Dekan Yardımcısı, Bölüm Başkanı, Merkez Müdürü,  Müdür Yardımcısı(Enstitü/MYO/BAP)",null,null,50,0]
["I4","Bölüm Başkan Yardımcısı, Anabilim Dalı Başkanı, MYO Program Başkanı",null,null,20,0]
["I5","SHGM Müdür, SHGM Koordinatör",null,null,20,0]
["I6","Yabancı Diller Bölümü Koordinatörlük",null,null,10,0]
["I7","Komisyon/kurul görevi (Bologna, Erasmus, Farabi, Mevlana, ADEK, BAP, Yayın, Etik, Engelli, Uluslaraarsı Ofis) ",null,null,5,0]
["I8","Öğrenci Kulübü Danışman Öğretim Üyesi ",null,null,5,0]
["Not: Aynı anda sürdürdüğü en üst görev puanlamada dikkate alınır."]

{"sheet":"Ayarlar","index":11,"n_rows":5,"n_cols":3,"rows_kept":5,"cut":false,"hidden":false,"merged":[]}
["Profesör",1,1]
["Doçent",2,1]
["Dr. Öğrt. Üyesi",3,1]
["Öğrt. Gör.",4,2]
["Araş. Gör.",5,3]